{"text_format":"3","workbook":"xlsx","n_sheets":2,"sheets":["Svarlogg","Sammendrag av svar"],"not_rendered":{"charts":2,"external_links":1,"defined_names":22},"read":"whole","date_system":"1900"}

{"sheet":"Svarlogg","index":0,"n_rows":15,"n_cols":15,"rows_kept":15,"merged":[[0,3,0,4],[0,5,0,7]]}
[{"$nulls":5},"SAMMENDRAG AV S.U."]
[null,"BRYLLUPSDATO",null,"sporing av bryllupsinvitasjoner"]
[null,{"$f":"TODAY()+283","v":"2023-05-18"},null,"NAVN PÅ GJEST","SENDT?","S.U.","FEST","GJEST","RELASJON","ADRESSE","POSTSTED","DELSTAT","POSTNUMMER","TELEFON","KONTAKT-E-POSTADRESSE"]
[null,"GJENVÆRENDE DAGER",null,"Navn 1","Ja","Ja",1,"Kommende ektefelle 1","Bror","Adresse","Poststed","Delstat","POSTNUMMER","Telefonnummer","noen@example.com"]
[null,{"$f":"DagerGjenværende","v":283},null,"Navn 2","Ja","Nei",3,"Kommende ektefelle 1","Venn","Adresse","Poststed","Delstat","POSTNUMMER","Telefonnummer","noen@example.com"]
[null,"SKAL DELTA",null,"Navn 3","Ja","Ja",1,"Annet","Venn","Adresse","Poststed","Delstat","POSTNUMMER","Telefonnummer","noen@example.com"]
[null,{"$f":"TotalDeltagende","v":12},null,"Navn 4","Ja","Nei",2,"Kommende ektefelle 2","Venn","Adresse","Poststed","Delstat","POSTNUMMER","Telefonnummer","noen@example.com"]
[null,"SKAL IKKE DELTA",null,"Navn 5","Ja","Ja",2,"Kommende ektefelle 2","Venn","Adresse","Poststed","Delstat","POSTNUMMER","Telefonnummer","noen@example.com"]
[null,{"$f":"TotalIkkeDeltagende","v":6},null,"Navn 6","Ja","Foreløpig",null,"Annet","Venn","Adresse","Poststed","Delstat","POSTNUMMER","Telefonnummer","noen@example.com"]
[null,"UTESTÅENDE",null,"Navn 7","Ja","Ja",2,"Kommende ektefelle 2","Venn","Adresse","Poststed","Delstat","POSTNUMMER","Telefonnummer","noen@example.com"]
[null,{"$f":"UteståendeSvar","v":1},null,"Navn 8","Ja","Nei",1,"Annet","Venn","Adresse","Poststed","Delstat","POSTNUMMER","Telefonnummer","noen@example.com"]
[{"$nulls":3},"Navn 9","Ja","Ja",4,"Kommende ektefelle 1","Venn","Adresse","Poststed","Delstat","POSTNUMMER","Telefonnummer","noen@example.com"]
[{"$nulls":3},"Navn 10","Ja","Ja",2,"Kommende ektefelle 1","Venn","Adresse","Poststed","Delstat","POSTNUMMER","Telefonnummer","noen@example.com"]
[{"$nulls":3},"Navn 11","Ja",null,null,"Kommende ektefelle 2","Bror","Adresse","Poststed","Delstat","POSTNUMMER","Telefonnummer","noen@example.com"]
[{"$nulls":3},"Total",{"$f":"COUNTIF(Svarlogg!$E$4:$E$14,\"Ja\")","v":11},{"$f":"COUNTA(Svarlogg!$F$4:$F$14)","v":10},{"$f":"SUBTOTAL(109,tbl_Invitasjoner[FEST])","v":18}]

{"sheet":"Sammendrag av svar","index":1,"n_rows":11,"n_cols":15,"rows_kept":11,"merged":[[0,3,0,4],[0,5,0,8],[2,3,6,3],[2,4,6,4],[7,3,11,3],[7,4,11,4]]}
[{"$nulls":3},"SPORING AV S.U."]
[null,"BRYLLUPSDATO",null,"Sammendrag av svar",{"$nulls":10},"merknader"]
[null,{"$f":"Bryllupsdato","v":"2023-05-18"},null,"JA","Gruppert liggende stolpediagram viser gjestekategorier de som har takket ja i denne cellen."]
[null,"GJENVÆRENDE DAGER",{"$nulls":3},"ANNET",{"$f":"IFERROR(SUMIFS(tbl_Invitasjoner[FEST],tbl_Invitasjoner[GJEST],\"=ANNET\",tbl_Invitasjoner[S.U.],\"Ja\"),0)","v":1},{"$f":"tbl_Invitasjoner[[#Totals],[SENDT?]]","v":11}]
[null,{"$f":"DagerGjenværende","v":283},{"$nulls":3},"KOMMENDE EKTEFELLE 2",{"$f":"IFERROR(SUMIFS(tbl_Invitasjoner[FEST],tbl_Invitasjoner[GJEST],\"=Kommende ektefelle 2\",tbl_Invitasjoner[S.U.],\"Ja\"),0)","v":4},{"$f":"tbl_Invitasjoner[[#Totals],[SENDT?]]","v":11}]
[null,"SKAL DELTA",{"$nulls":3},"KOMMENDE EKTEFELLE 1",{"$f":"IFERROR(SUMIFS(tbl_Invitasjoner[FEST],tbl_Invitasjoner[GJEST],\"=Kommende ektefelle 1\",tbl_Invitasjoner[S.U.],\"Ja\"),0)","v":7},{"$f":"tbl_Invitasjoner[[#Totals],[SENDT?]]","v":11}]
[null,{"$f":"TotalDeltagende","v":12}]
[null,"SKAL IKKE DELTA",null,"NEI","Gruppert liggende stolpediagram viser gjestekategorier de som har takket nei i denne cellen."]
[null,{"$f":"TotalIkkeDeltagende","v":6},{"$nulls":3},"ANNET",{"$f":"IFERROR(SUMIFS(tbl_Invitasjoner[FEST],tbl_Invitasjoner[GJEST],\"=ANNET\",tbl_Invitasjoner[S.U.],\"Nei\"),0)","v":1},{"$f":"tbl_Invitasjoner[[#Totals],[SENDT?]]","v":11}]
[null,"UTESTÅENDE",{"$nulls":3},"KOMMENDE EKTEFELLE 2",{"$f":"IFERROR(SUMIFS(tbl_Invitasjoner[FEST],tbl_Invitasjoner[GJEST],\"=Kommende ektefelle 2\",tbl_Invitasjoner[S.U.],\"Nei\"),0)","v":2},{"$f":"tbl_Invitasjoner[[#Totals],[SENDT?]]","v":11}]
[null,{"$f":"UteståendeSvar","v":1},{"$nulls":3},"KOMMENDE EKTEFELLE 1",{"$f":"IFERROR(SUMIFS(tbl_Invitasjoner[FEST],tbl_Invitasjoner[GJEST],\"=Kommende ektefelle 1\",tbl_Invitasjoner[S.U.],\"Nei\"),0)","v":3},{"$f":"tbl_Invitasjoner[[#Totals],[SENDT?]]","v":11}]